fUSD/lending_fUSD_20250513
["ID","MTS","AMOUNT","RATE_DAILY","PERIOD"]
[360962283,1747165841757,-400.0,0.00010997,2]
[360962284,1747165841767,-1160.46,0.00010997,2]
[360962285,1747165841777,-400.0,0.00010997,2]
[360962286,1747165841786,-400.0,0.00010997,2]
[360962287,1747165841795,-400.0,0.00010997,2]
[360962288,1747165841805,-665.14,0.00010997,2]
[360962289,1747165841814,-400.0,0.00010997,2]
[360962290,1747165841824,-400.0,0.00010997,2]
[360962291,1747165841834,-1097.24,0.00010997,2]
[360962292,1747165841843,-400.0,0.00010997,2]
[360962293,1747165841853,-400.0,0.00010997,2]
[360962294,1747165841862,-400.0,0.00010997,2]
[360962295,1747165841872,-400.0,0.00010997,2]
[360962296,1747165841881,-400.0,0.00010997,2]
[360962297,1747165841891,-400.0,0.00010997,2]
[360962298,1747165841899,-400.0,0.00010997,2]
[360962299,1747165841909,-400.0,0.00010997,2]
[360962300,1747165841918,-400.0,0.00010997,2]
[360962301,1747165841927,-498.51,0.00010997,2]
[360962302,1747165841936,-400.0,0.00010997,2]
[360962303,1747165841945,-400.0,0.00010997,2]
[360962304,1747165841955,-400.0,0.00010997,2]
[360962305,1747165841964,-400.0,0.00010997,2]
[360962306,1747165841973,-212.09905517,0.00010997,2]
[360962307,1747165841989,-187.90094483,0.00010997,2]
[360962308,1747165841998,-400.0,0.00010997,2]
[360962309,1747165842008,-400.0,0.00010997,2]
[360962310,1747165842017,-400.0,0.00010997,2]
[360962311,1747165842031,-400.0,0.00010997,2]
[360962312,1747165842040,-505.73,0.00010997,2]
[360962313,1747165842050,-897.76182289,0.00010997,2]
[360962314,1747165842064,-263.00817711,0.00010997,2]
[360962315,1747165842073,-263.73873553,0.00010997,2]
[360962316,1747165842084,-136.26126447,0.00010997,2]
[360962317,1747165842094,-241.83341553,0.00010997,2]
[360962318,1747165842105,-158.16658447,0.00010997,2]
[360962319,1747165842116,-400.0,0.00010997,2]
[360962320,1747165842125,-400.0,0.00010997,2]
[360962321,1747165842135,-400.0,0.00010997,2]
[360962322,1747165842146,-400.0,0.00010997,2]
[360962323,1747165842156,-400.0,0.00010997,2]
[360962324,1747165842166,-1299.14,0.00010997,2]
[360962325,1747165842175,-400.0,0.00010997,2]
[360962326,1747165842185,-166.17392558,0.00010997,2]
[360962327,1747165842196,-234.57607442,0.00010997,2]
[360962328,1747165842206,-400.0,0.00010997,2]
[360962329,1747165842215,-400.0,0.00010997,2]
[360962330,1747165842224,-400.0,0.00010997,2]
[360962331,1747165842234,-400.0,0.00010997,2]
[360962332,1747165842243,-400.0,0.00010997,2]
[360962333,1747165842253,-258.19503993,0.00010997,2]
[360962334,1747165842265,-141.80496007,0.00010997,2]
[360962335,1747165842274,-381.59503993,0.00010997,2]
[360962336,1747165842300,-18.40496007,0.00010997,2]
[360962337,1747165842310,-400.0,0.00010997,2]
[360962338,1747165842319,-124.68240118,0.00010997,2]
[360962339,1747165842331,-275.31759882,0.00010997,2]
[360962341,1747165842340,-633.39,0.00010997,2]
[360962342,1747165842349,-192.36740218,0.00010997,2]
[360962343,1747165842453,-207.63259782,0.00010997,2]
[360962345,1747165842463,-400.0,0.00010997,2]
[360962347,1747165842472,-437.97,0.00010997,2]
[360962349,1747165842482,-400.0,0.00010997,2]
[360962350,1747165842491,-400.0,0.00010997,2]
[360962351,1747165842500,-400.0,0.00010997,2]
[360962352,1747165842510,-1766.34,0.00010997,2]
[360962353,1747165842520,-452.43,0.00010997,2]
[360962355,1747165842529,-400.0,0.00010997,2]
[360962358,1747165842539,-400.0,0.00010997,2]
[360962360,1747165842548,-400.0,0.00010997,2]
[360962362,1747165842558,-1314.82,0.00010997,2]
[360962363,1747165842567,-400.0,0.00010997,2]
[360962364,1747165842577,-481.56,0.00010997,2]
[360962365,1747165842587,-400.0,0.00010997,2]
[360962367,1747165842814,-836.25,0.00010997,2]
[360962368,1747165842824,-400.0,0.00010997,2]
[360962369,1747165842834,-400.0,0.00010997,2]
[360962370,1747165842843,-1287.88,0.00010997,2]
[360962371,1747165842852,-400.0,0.00010997,2]
[360962372,1747165842861,-400.0,0.00010997,2]
[360962373,1747165842870,-400.0,0.00010997,2]
[360962374,1747165842880,-400.0,0.00010997,2]
[360962375,1747165842890,-400.0,0.00010997,2]
[360962376,1747165842899,-442.22,0.00010997,2]
[360962377,1747165842908,-518.68,0.00010997,2]
[360962378,1747165842917,-400.0,0.00010997,2]
[360962379,1747165842926,-1551.18,0.00010997,2]
[360962380,1747165842935,-400.0,0.00010998,2]
[360962381,1747165842944,-403.24151453,0.00010998,2]
[360962382,1747165842953,-400.0,0.00010998,2]
[360962383,1747165842963,-400.0,0.00010998,2]
[360962384,1747165842972,-400.0,0.00010998,2]
[360962385,1747165842985,-414.48,0.00010998,2]
[360962386,1747165842994,-400.0,0.00010998,2]
[360962387,1747165843004,-400.0,0.00010998,2]
[360962388,1747165843013,-400.0,0.00010998,2]
[360962389,1747165843023,-400.0,0.00010998,2]
[360962390,1747165843032,-400.0,0.00010998,2]
[360962391,1747165843041,-400.0,0.00010998,2]
[360962392,1747165843051,-546.1,0.00010998,2]
[360962393,1747165843060,-437.99,0.00010998,2]
[360962394,1747165843069,-400.0,0.00010998,2]
[360962395,1747165843078,-183.60867423,0.00010998,2]
[360962396,1747165843088,-400.0,0.00010998,2]
[360962398,1747165843097,-400.0,0.00010998,2]
[360962400,1747165843106,-400.0,0.00010998,2]
[360962402,1747165843115,-400.0,0.00010998,2]
[360962404,1747165843124,-400.0,0.00010998,2]
[360962406,1747165843134,-400.0,0.00010998,2]
[360962408,1747165843145,-400.0,0.00010998,2]
[360962410,1747165843154,-400.0,0.00010998,2]
[360962412,1747165843163,-400.0,0.00010998,2]
[360962413,1747165843173,-400.0,0.00010998,2]
[360962414,1747165843182,-400.0,0.00010998,2]
[360962415,1747165843191,-400.0,0.00010998,2]
[360962416,1747165843201,-400.0,0.00010998,2]
[360962417,1747165843210,-400.0,0.00010998,2]
[360962418,1747165843219,-400.0,0.00010998,2]
[360962419,1747165843229,-400.0,0.00010998,2]
[360962420,1747165843239,-400.0,0.00010998,2]
[360962422,1747165843248,-400.0,0.00010998,2]
[360962424,1747165843258,-400.0,0.00010998,2]
[360962426,1747165843267,-400.0,0.00010998,2]
[360962428,1747165843276,-400.0,0.00010998,2]
[360962430,1747165843285,-416.13018274,0.00010998,2]
[360962432,1747165843294,-400.0,0.00010998,2]
[360962435,1747165843303,-400.0,0.00010998,2]
[360962437,1747165843313,-400.0,0.00010998,2]
[360962439,1747165843323,-4.71829379,0.00010998,2]
[360962541,1747165844584,-395.28170621,0.00010998,2]
[360962542,1747165844594,-400.0,0.00010998,2]
[360962543,1747165844603,-400.0,0.00010998,2]
[360962544,1747165844613,-352.79992504,0.00010998,2]
[360962545,1747165844623,-169.36316581,0.00010998,2]
[360962546,1747165844823,-400.0,0.00010996,2]
[360962547,1747165844833,-230.63683419,0.00010998,2]
[360962548,1747165844843,-400.0,0.00010998,2]
[360962549,1747165844852,-400.0,0.00010998,2]
[360962550,1747165844862,-400.0,0.00010998,2]
[360962551,1747165844871,-400.0,0.00010998,2]
[360962552,1747165844881,-400.0,0.00010998,2]
[360962553,1747165844893,-400.0,0.00010998,2]
[360962554,1747165844903,-857.72,0.00010998,2]
[360962555,1747165844913,-400.0,0.00010998,2]
[360962556,1747165844921,-400.0,0.00010998,2]
[360962557,1747165844931,-400.0,0.00010998,2]
[360962558,1747165844940,-400.0,0.00010998,2]
[360962559,1747165844950,-400.0,0.00010998,2]
[360962560,1747165844959,-400.0,0.00010998,2]
[360962561,1747165844969,-400.0,0.00010998,2]
[360962562,1747165844979,-400.0,0.00010998,2]
[360962563,1747165844991,-400.0,0.00010998,2]
[360962564,1747165845001,-400.0,0.00010998,2]
[360962565,1747165845010,-400.0,0.00010998,2]
[360962566,1747165845022,-573.79,0.00010998,2]
[360962567,1747165845031,-400.0,0.00010998,2]
[360962568,1747165845041,-400.0,0.00010998,2]
[360962569,1747165845051,-400.0,0.00010998,2]
[360962570,1747165845061,-400.0,0.00010998,2]
[360962571,1747165845071,-606.97,0.00010998,2]
[360962572,1747165845081,-400.0,0.00010998,2]
[360962573,1747165845091,-400.0,0.00010998,2]
[360962574,1747165845100,-400.0,0.00010998,2]
[360962575,1747165845110,-400.0,0.00010998,2]
[360962576,1747165845119,-400.0,0.00010998,2]
[360962577,1747165845130,-200.0,0.00010998,2]
[360962578,1747165845139,-691.08,0.00010998,2]
[360962579,1747165845155,-400.0,0.00010998,2]
[360962580,1747165845164,-400.0,0.00010998,2]
[360962581,1747165845172,-400.0,0.00010998,2]
[360962582,1747165845181,-400.0,0.00010998,2]
[360962583,1747165845191,-400.0,0.00010998,2]
[360962584,1747165845200,-400.0,0.00010998,2]
[360962585,1747165845211,-546.07,0.00010998,2]
[360962586,1747165845222,-488.96,0.00010998,2]
[360962587,1747165845232,-427.38,0.00010998,2]
[360962588,1747165845243,-400.0,0.00010998,2]
[360962589,1747165845254,-400.0,0.00010998,2]
[360962590,1747165845265,-504.86,0.00010998,2]
[360962591,1747165845276,-400.0,0.00010998,2]
[360962592,1747165845287,-400.0,0.00010998,2]
[360962593,1747165845297,-400.0,0.00010998,2]
[360962594,1747165845308,-400.0,0.00010998,2]
[360962595,1747165845318,-2017.1,0.00010998,2]
[360962596,1747165845329,-400.0,0.00010998,2]
[360962597,1747165845339,-835.68,0.00010998,2]
[360962598,1747165845351,-3590.09,0.00010998,2]
[360962599,1747165845360,-110.25376956,0.00010998,2]
[360962600,1747165845374,-354.5688838,0.00010998,2]
[360962601,1747165845409,-572.22734664,0.00010998,2]
[360962603,1747165845419,-1181.09,0.00010998,2]
[360962604,1747165845429,-400.0,0.00010998,2]
[360962605,1747165845438,-400.0,0.00010998,2]
[360962606,1747165845448,-666.82,0.00010998,2]
[360962607,1747165845457,-400.0,0.00010998,2]
[360962608,1747165845467,-400.0,0.00010999,2]
[360962610,1747165845477,-200.0,0.00010999,2]
[360962611,1747165845487,-400.0,0.00010999,2]
[360962613,1747165845495,-427.14845769,0.00010999,2]
[360962614,1747165845503,-400.0,0.00010999,2]
[360962616,1747165845511,-200.0,0.00010999,2]
[360962617,1747165845519,-400.0,0.00010999,2]
[360962618,1747165845526,-400.0,0.00010999,2]
[360962619,1747165845534,-400.0,0.00010999,2]
[360962620,1747165845542,-545.13,0.00010999,2]
[360962621,1747165845549,-476.93,0.00010999,2]
[360962622,1747165845557,-400.0,0.00010999,2]
[360962623,1747165845565,-400.0,0.00010999,2]
[360962624,1747165845573,-346.36334283,0.00010999,2]
[360962625,1747165845580,-400.0,0.00010999,2]
[360962626,1747165845589,-4278.04,0.00010999,2]
[360962627,1747165845596,-400.0,0.00010999,2]
[360962628,1747165845604,-1363.44,0.00010999,2]
[360962629,1747165845611,-400.0,0.00010999,2]
[360962630,1747165845618,-400.0,0.00010999,2]
[360962631,1747165845627,-676.91,0.00010999,2]
[360962632,1747165845635,-400.0,0.00010999,2]
[360962633,1747165845647,-590.96,0.00010999,2]
[360962634,1747165845656,-400.0,0.00010999,2]
[360962635,1747165845665,-6385.58,0.00010999,2]
[360962636,1747165845674,-1131.29,0.00010999,2]
[360962637,1747165845681,-400.0,0.00010999,2]
[360962638,1747165845689,-400.0,0.00010999,2]
[360962639,1747165845696,-400.0,0.00010999,2]
[360962640,1747165845703,-13826.13,0.00010999,2]
[360962641,1747165845711,-4461.8,0.00010999,2]
[360962642,1747165845718,-8473.28,0.00010999,2]
[360962643,1747165845726,-522.53,0.00010999,2]
[360962644,1747165845733,-2720.8,0.00010999,2]
[360962645,1747165845741,-400.0,0.00010999,2]
[360962646,1747165845749,-300.0,0.00010999,2]
[360962647,1747165845756,-171.12539803,0.00010999,2]
[360962648,1747165845764,-291642.47674238,0.00010999,2]
[360962649,1747165845775,-1389342.92045641,0.00010999,2]
[360962650,1747165845783,-251.48,0.00011,2]
[360962651,1747165845790,-692638.5119599,0.00011,2]
[360962652,1747165845800,-39470.55864855,0.00011,2]
[360962653,1747165845866,-278459.27182622,0.00011,2]
[360962654,1747165845904,-515.811067,0.00011,2]
[360962655,1747165845913,-641.99246739,0.00011,2]
[360962656,1747165845922,-565.99524606,0.00011,2]
[360962657,1747165845932,-6872.85642742,0.00011,2]
[360962658,1747165845941,-1365.85,0.00011,2]
[360962659,1747165845950,-10450.00000006,0.00011,2]
[360962660,1747165845961,-16286.67987686,0.00011,2]
[360962661,1747165845973,-75682.86244362,0.00011,2]
[360962662,1747165845997,-191.83690584,0.00010995,2]
[360962663,1747165846006,-1010.25229416,0.00011,2]
[360962664,1747165846019,-1044.6000003,0.00011,2]
[360962665,1747165846030,-3268.2265522,0.00011,2]
[360962666,1747165846042,-2096.6,0.00011,2]
[360962667,1747165846053,-855.329631,0.00011,2]
[360962668,1747165846286,-400.0,0.00010995,2]
[360962669,1747165846296,-400.0,0.00010996,2]
[360962670,1747165846305,-435.113726,0.00011,2]
[360962671,1747165846330,-300.21196048,0.00010995,2]
[360962672,1747165846341,-99.78803952,0.00010995,2]
[360962673,1747165846351,-63397.36825439,0.00011,2]
[360962674,1747165846362,-78998.15633051,0.00011,2]
[360962675,1747165846399,-18702.17,0.00011,2]
[360962676,1747165846411,-648.33435234,0.00011,2]
[360962677,1747165846423,-290.37999729,0.00011,2]
[360962678,1747165846434,-440976.32984206,0.00011,2]
[360962679,1747165846445,-8209.9872001,0.00011,2]
[360962680,1747165846457,-2163.16702659,0.00011,2]
[360962685,1747165846501,-27308.1687978,0.00011,2]
[360963465,1747166173454,38651.27427718,0.00028,120]
[360963466,1747166376080,246.99966269,0.000135,5]
[360963467,1747166590800,1000.0,0.000135,5]
[360963468,1747166619277,172.1,7.96e-05,2]
[360963469,1747166688777,2899.07409905,0.00025,120]
[360963470,1747166706419,-300.0,9.994e-05,2]
[360963471,1747166706444,-1200.0,9.994e-05,2]
[360963472,1747166706480,-500.0,9.995e-05,2]
[360963473,1747166706516,-500.0,9.995e-05,2]
[360963474,1747166706552,-500.0,9.995e-05,2]
[360963475,1747166706586,-500.0,9.995e-05,2]
[360963476,1747166706620,-500.0,9.995e-05,2]
[360963477,1747166706657,-500.0,9.995e-05,2]
[360963478,1747166706694,-500.0,9.995e-05,2]
[360963479,1747166706731,-500.0,9.995e-05,2]
[360963480,1747166706765,-500.0,9.995e-05,2]
[360963481,1747166706800,-500.0,9.995e-05,2]
[360963482,1747166706835,-500.0,9.995e-05,2]
[360963483,1747166706869,-500.0,9.995e-05,2]
[360963484,1747166706902,-500.0,9.995e-05,2]
[360963485,1747166706937,-500.0,9.995e-05,2]
[360963486,1747166706970,-500.0,9.995e-05,2]
[360963487,1747166707002,-500.0,9.995e-05,2]
[360963488,1747166707035,-500.0,9.995e-05,2]
[360963489,1747166707069,-527.72514756,9.995e-05,2]
[360963490,1747166707102,-500.0,9.995e-05,2]
[360963491,1747166707134,-500.0,9.995e-05,2]
[360963492,1747166707167,-500.0,9.995e-05,2]
[360963493,1747166707191,-150.0,9.996e-05,2]
[360963494,1747166707215,-450.0,0.0001,2]
[360963495,1747166707238,-450.0,0.0001,2]
[360963496,1747166707269,-300.0,0.00010012,2]
[360963497,1747166707296,-23900.0,0.00010013,2]
[360963498,1747166707321,-181.15,0.00010071,2]
[360963499,1747166707353,-441.12485244,0.00010083,2]
[360963500,1747166738685,-162.25,9.989e-05,2]
[360963501,1747166810696,-1000.0,9.979e-05,2]
[360963509,1747166908397,1932.82,8.219e-05,2]
[360963532,1747167031700,-250.0,9.979e-05,2]
[360963533,1747167031711,-31.51514756,0.00010083,2]
[360963534,1747167031723,-500.0,0.00010368,2]
[360963535,1747167031732,-169.74723862,0.00010368,2]
[360963536,1747167031742,-257.89186692,0.00010368,2]
[360963537,1747167031854,-242.10813308,0.00010368,2]
[360963538,1747167031871,-163.92,0.00010369,2]
[360963539,1747167031885,-1932.82,0.00010475,2]
[360963540,1747167031898,-500.0,0.00010795,2]
[360963541,1747167031914,-300.0,0.00010878,2]
[360963542,1747167031929,-630.0,0.00010878,2]
[360963543,1747167031944,-12663.66506656,0.00010879,2]
[360963544,1747167031957,-207.4,0.00010882,2]
[360963545,1747167031970,-18004.70053872,0.00010889,2]
[360963546,1747167031982,-151.0,0.00010893,2]
[360963547,1747167031997,-155.0,0.00010893,2]
[360963548,1747167032013,-151.0,0.00010893,2]
[360963549,1747167032027,-668.65185757,0.00010893,2]
[360963550,1747167032042,-287.61899177,0.00010893,2]
[360963551,1747167032058,-3138.8008,0.00010897,2]
[360963552,1747167032071,-173.23072863,0.00010897,2]
[360963554,1747167032086,-169.16377742,0.00010897,2]
[360963556,1747167032100,-192.14601376,0.00010897,2]
[360963559,1747167032115,-750.93533327,0.00010897,2]
[360963561,1747167032131,-750.93533326,0.00010899,2]
[360963564,1747167032144,-1241.95250169,0.00010899,2]
[360963566,1747167032159,-1601.35785049,0.00010899,2]
[360963570,1747167032188,-336.40764782,0.00010899,2]
[360963572,1747167032199,-172.409,0.00010899,2]
[360963574,1747167032210,-11.77488811,0.000109,2]
[360963577,1747167032225,-645.76,0.000109,2]
[360963581,1747167032254,-1531.03851189,0.000109,2]
[360963583,1747167032270,-1000.0,0.000109,2]
[360963585,1747167032284,-1000.0,0.000109,2]
[360963588,1747167032298,-1000.0,0.000109,2]
[360963590,1747167032312,-750.93533326,0.000109,2]
[360963592,1747167032327,-163.73588803,0.000109,2]
[360963595,1747167032345,-22018.9126632,0.000109,2]
[360963597,1747167032358,-150.0,0.00010959,2]
[360963599,1747167032372,-200.81,0.00010959,2]
[360963602,1747167032385,-500.0,0.00010959,2]
[360963604,1747167032398,-500.0,0.00010959,2]
[360963606,1747167032411,-500.0,0.00010959,2]
[360963609,1747167032424,-500.0,0.00010959,2]
[360963611,1747167032437,-500.0,0.00010959,2]
[360963613,1747167032451,-500.0,0.00010959,2]
[360963616,1747167032464,-500.0,0.00010959,2]
[360963618,1747167032477,-500.0,0.00010959,2]
[360963620,1747167032490,-1000.0,0.0001097,2]
[360963623,1747167032503,-169.62441475,0.00010973,2]
[360963625,1747167032516,-520.54168207,0.00010973,2]
[360963627,1747167032528,-500.0,0.00010973,2]
[360963628,1747167032541,-500.0,0.00010973,2]
[360963630,1747167032553,-500.0,0.00010973,2]
[360963633,1747167032566,-505.279035,0.00010973,2]
[360963635,1747167032579,-500.0,0.00010973,2]
[360963638,1747167032592,-500.0,0.00010973,2]
[360963640,1747167032605,-500.0,0.00010973,2]
[360963642,1747167032618,-500.0,0.00010973,2]
[360963645,1747167032631,-500.0,0.00010973,2]
[360963647,1747167032644,-500.0,0.00010973,2]
[360963649,1747167032657,-500.0,0.00010973,2]
[360963652,1747167032670,-1000.0,0.0001099,2]
[360963654,1747167032683,-1000.0,0.0001099,2]
[360963656,1747167032696,-1000.0,0.0001099,2]
[360963659,1747167032708,-1000.0,0.0001099,2]
[360963661,1747167032721,-1000.0,0.0001099,2]
[360963663,1747167032735,-20821.59511043,0.00010993,2]
[360963666,1747167032752,-636.7520529,0.00010993,2]
[360963669,1747167032767,-474.87237804,0.00010993,2]
[360963671,1747167032783,-522.00025852,0.00010993,2]
[360963674,1747167032799,-517.1256,0.00010993,2]
[360963677,1747167032814,-2142.0,0.00010993,2]
[360963679,1747167032830,-5302.82428133,0.00010993,2]
[360963684,1747167032862,-742.01575815,0.00010993,2]
[360964155,1747167037694,-1660.7,0.00010993,2]
[360964160,1747167037734,-401.64443139,0.00010993,2]
[360964162,1747167037745,-6193.5005,0.00010993,2]
[360964164,1747167037759,-3616.99999997,0.00010993,2]
[360964166,1747167037770,-1194.80750344,0.00010993,2]
[360964169,1747167037791,-9196.32597638,0.00010993,2]
[360964173,1747167037825,-1785.78816,0.00010993,2]
[360964176,1747167037839,-1562.60042115,0.00010993,2]
[360964179,1747167037865,-3464.640158,0.00010993,2]
[360964186,1747167037923,-3138.0488083,0.00010993,2]
[360964212,1747167038191,-16105.11999997,0.00010993,2]
[360964694,1747167043607,-1050.70083461,0.000109,2]
[360964696,1747167043617,-25769.29916539,0.00010993,2]
[360964783,1747167044800,-36218.31944085,0.00010993,2]
[360964784,1747167044812,-994.20110042,0.00010993,2]
[360964785,1747167044823,-1049.9958,0.00010993,2]
[360964786,1747167044844,-1012.29540611,0.00010993,2]
[360964787,1747167044855,-1337.2181048,0.00010993,2]
[360964788,1747167044879,-1104.7317,0.00010993,2]
[360964789,1747167044891,-12626.78433601,0.00010993,2]
[360964790,1747167044950,-400.32988545,0.00010993,2]
[360964865,1747167045725,-5570.45453968,0.00010993,2]
[360964877,1747167045832,-1036.0021936,0.00010993,2]
[360964880,1747167045845,-71470.64946219,0.00010993,2]
[360964882,1747167045857,-10440.0,0.00010993,2]
[360964896,1747167045985,-220466.76684665,0.00010993,2]
[360964898,1747167045995,-5777.95899999,0.00010993,2]
[360964900,1747167046007,-2458.54353446,0.00010993,2]
[360964906,1747167046054,-37808.813561,0.00010993,2]
[360964908,1747167046063,-549.25,0.00010994,2]
[360964910,1747167046073,-492.47,0.00010994,2]
[360964912,1747167046083,-400.0,0.00010994,2]
[360964914,1747167046092,-665.69,0.00010994,2]
[360964916,1747167046101,-473.1,0.00010994,2]
[360964918,1747167046111,-400.0,0.00010994,2]
[360964920,1747167046120,-400.0,0.00010994,2]
[360964922,1747167046129,-524.05,0.00010994,2]
[360964924,1747167046139,-400.0,0.00010994,2]
[360964926,1747167046148,-400.0,0.00010994,2]
[360964928,1747167046157,-400.0,0.00010994,2]
[360964930,1747167046166,-400.0,0.00010994,2]
[360964932,1747167046175,-400.0,0.00010994,2]
[360964934,1747167046184,-578.95,0.00010994,2]
[360964936,1747167046194,-400.0,0.00010994,2]
[360964938,1747167046203,-515.55,0.00010994,2]
[360964940,1747167046212,-1124.18,0.00010994,2]
[360964942,1747167046221,-4528.79,0.00010994,2]
[360964943,1747167046231,-400.0,0.00010994,2]
[360964945,1747167046240,-400.0,0.00010994,2]
[360964947,1747167046249,-400.0,0.00010994,2]
[360964949,1747167046259,-400.0,0.00010994,2]
[360964951,1747167046268,-299.952794,0.00010994,2]
[360964953,1747167046277,-746.7,0.00010994,2]
[360964955,1747167046286,-400.0,0.00010994,2]
[360964957,1747167046295,-400.0,0.00010994,2]
[360964959,1747167046304,-1151.02,0.00010994,2]
[360964961,1747167046312,-400.05669301,0.00010994,2]
[360964963,1747167046322,-400.0,0.00010994,2]
[360964965,1747167046335,-400.0,0.00010994,2]
[360964967,1747167046347,-400.0,0.00010994,2]
[360964969,1747167046356,-400.0,0.00010995,2]
[360964971,1747167046366,-400.0,0.00010995,2]
[360964973,1747167046375,-400.0,0.00010995,2]
[360964975,1747167046384,-532.64784225,0.00010995,2]
[360964977,1747167046394,-400.0,0.00010995,2]
[360964979,1747167046404,-562.02,0.00010995,2]
[360964981,1747167046414,-400.0,0.00010995,2]
[360964983,1747167046423,-400.0,0.00010995,2]
[360964985,1747167046433,-400.0,0.00010995,2]
[360964987,1747167046442,-471.09,0.00010995,2]
[360964989,1747167046452,-400.0,0.00010995,2]
[360964991,1747167046461,-400.0,0.00010995,2]
[360964993,1747167046470,-400.0,0.00010995,2]
[360964995,1747167046479,-400.0,0.00010995,2]
[360964997,1747167046489,-400.0,0.00010995,2]
[360964999,1747167046498,-400.0,0.00010995,2]
[360965001,1747167046508,-400.0,0.00010995,2]
[360965003,1747167046517,-400.0,0.00010995,2]
[360965005,1747167046527,-400.0,0.00010995,2]
[360965007,1747167046536,-873.49,0.00010995,2]
[360965009,1747167046545,-400.0,0.00010995,2]
[360965010,1747167046554,-400.0,0.00010995,2]
[360965012,1747167046563,-400.0,0.00010995,2]
[360965014,1747167046572,-400.0,0.00010995,2]
[360965016,1747167046582,-401.12577714,0.00010995,2]
[360965018,1747167046591,-363.06731602,0.00010995,2]
[360965020,1747167046601,-897.51,0.00010995,2]
[360965022,1747167046613,-400.0,0.00010995,2]
[360965024,1747167046623,-277.69687403,0.00010995,2]
[360965026,1747167046632,-400.0,0.00010995,2]
[360965028,1747167046641,-400.0,0.00010995,2]
[360965030,1747167046651,-494.62,0.00010995,2]
[360965032,1747167046660,-500.0,0.00010995,2]
[360965033,1747167046670,-400.0,0.00010995,2]
[360965034,1747167046679,-400.0,0.00010995,2]
[360965035,1747167046688,-400.0,0.00010995,2]
[360965036,1747167046698,-500.0,0.00010995,2]
[360965037,1747167046707,-1168.59,0.00010995,2]
[360965038,1747167046716,-400.0,0.00010995,2]
[360965039,1747167046726,-400.0,0.00010995,2]
[360965040,1747167046735,-400.0,0.00010995,2]
[360965041,1747167046745,-400.0,0.00010995,2]
[360965042,1747167046754,-400.0,0.00010995,2]
[360965043,1747167046764,-439.68,0.00010995,2]
[360965044,1747167046774,-198.65300979,0.00010995,2]
[360965045,1747167046783,-1812.754973,0.00010995,2]
[360965046,1747167046793,-164.918635,0.00010995,2]
[360965047,1747167046802,-440.13699726,0.00010995,2]
[360965048,1747167046813,-517.38,0.00010995,2]
[360965049,1747167046823,-626.29,0.00010995,2]
[360965050,1747167046832,-400.0,0.00010995,2]
[360965051,1747167046843,-250.0,0.00010995,2]
[360965052,1747167046853,-400.0,0.00010995,2]
[360965053,1747167046862,-400.0,0.00010995,2]
[360965054,1747167046871,-400.0,0.00010995,2]
[360965055,1747167046881,-400.0,0.00010995,2]
[360965056,1747167046891,-400.0,0.00010995,2]
[360965057,1747167046900,-400.0,0.00010995,2]
[360965058,1747167046910,-723.52,0.00010995,2]
[360965059,1747167046919,-414.84,0.00010995,2]
[360965060,1747167046929,-400.0,0.00010995,2]